Cogmind - Beta 11 X5 @@@ ROGUE MODE // 2021.06.17 @ 20:28:36 Player: Runia Result: Destroyed by 12-ASH with 12-ASH's Boomstick Performance ------------- Evolutions (4) 2000 Regions Visited (12) 2400 Robots Destroyed (181) 905 Value Destroyed (6646) 6646 Prototype IDs (10) 200 Alien Tech Used (0) 0 Bonus (2018) 2018 TOTAL SCORE: 14169 Bonus ------- High Alert Combat Kills 649 Follower Combat Kills 350 Entered Garrisons 400 Used RIF Installer 1000 Friendly Fire -381 Cogmind --------- Core Integrity 0/850 Matter 7/300 Energy 77/100 System Corruption 2% Temperature Cool (51) Movement Core (100) Ox1 Location -6/Zion Parts ------- > --- POWER (1) -------- (None) > --- PROPULSION (5) --- (None) > --- UTILITY (7) ------ Advanced Visual Processing Unit Advanced Signal Interpreter Relay Coupler [Hunter] (18) > --- WEAPON (2) ------- Greatsword > --- INVENTORY (5) ---- Advanced Melee Analysis Suite Relay Coupler [Swarmer] (44) Remote Datajack Peak State ------------ > --- POWER ------------ Improved Deuterium Engine > --- PROPULSION ------- Carbon-fiber Leg Carbon-fiber Leg Compact Wheel Compact Wheel > --- UTILITY ---------- Huge Storage Unit Advanced Visual Processing Unit Advanced Signal Interpreter Relay Coupler [Swarmer] Relay Coupler [Sentry] Relay Coupler [Hunter] Relay Coupler [Behemoth] > --- WEAPON ----------- Makeshift Laser Heavy Ion Cannon > --- INVENTORY -------- Reinforced Deuterium Engine Advanced Heat Sink Gravity Neutralizing Apparatus Improved Sensor Array Advanced Melee Analysis Suite Improved Transmission Jammer Phase Shifter Improved Utility Shielding Improved Heavy Armor Plating Relay Coupler [NC] Relay Coupler [NC] Relay Coupler [NC] Relay Coupler [Swarmer] Relay Coupler [Sentry] Relay Coupler [Demolisher] Relay Coupler [Hunter] Relay Coupler [Behemoth] Mini Grenade Launcher Heavy Rocket Launcher Improved Datajack Remote Datajack Remote Datajack Greatsword [Rating: 56] Favorites ----------- Power Deuterium Engine Engine Deuterium Engine Propulsion Light Treads Treads Light Treads Leg Carbon-fiber Leg Wheel Compact Wheel Utility Advanced Visual Processing Unit Device Sensor Array Storage High-capacity Storage Unit Processor Advanced Visual Processing Unit Hackware Relay Coupler [NC] Protection Improved Utility Shielding Weapon Ion Cannon Energy Gun Spread Laser Energy Cannon Ion Cannon Ballistic Gun Light Assault Rifle Launcher Mini Grenade Launcher Special Weapon Remote Datajack Slashing Weapon Greatsword Special Melee Weapon Datajack Build | -11 -10 -9 -8 -8 -8 -8 -6 -6 -6 -6 -6 -6 ------- Run | Scr Mat Mat Mat Sto Gar Rec Fac Gar Fac Low Low Zio Slots Evolved 8 | . . 2 2 . . . 4 . . . . . Power . | . . . . . . . . . . . . . Propulsion 3 | . . 1 . . . . 2 . . . . . Utility 5 | . . 1 2 . . . 2 . . . . . Weapon . | . . . . . . . . . . . . . Parts Attached 196 | . 15 31 32 14 21 3 5 28 23 5 13 6 Power 9 | . 1 3 1 1 1 . . 1 1 . . . Engine 9 | . 1 3 1 1 1 . . 1 1 . . . Core . | . . . . . . . . . . . . . Reactor . | . . . . . . . . . . . . . Propulsion 48 | . 6 7 10 4 3 1 1 6 6 2 2 . Treads 26 | . 2 5 7 4 3 1 1 2 1 . . . Leg 8 | . 2 . . . . . . 2 2 . 2 . Wheel 14 | . 2 2 3 . . . . 2 3 2 . . Hover . | . . . . . . . . . . . . . Flight . | . . . . . . . . . . . . . Utility 64 | . 6 4 14 6 5 . 3 13 6 1 4 2 Device 13 | . . . 5 1 1 . 2 1 1 1 1 . Storage 6 | . 3 . . 2 1 . . . . . . . Processor 5 | . . 2 2 . . . . . 1 . . . Hackware 18 | . 1 . 1 . 1 . . 11 1 . 2 1 Protection 22 | . 2 2 6 3 2 . 1 1 3 . 1 1 Artifact . | . . . . . . . . . . . . . Weapon 75 | . 2 17 7 3 12 2 1 8 10 2 7 4 Energy Gun 23 | . 1 5 2 1 2 2 . 2 5 1 2 . Energy Cannon 16 | . . 4 3 1 4 . . 2 1 . 1 . Ballistic Gun 7 | . 1 4 1 1 . . . . . . . . Ballistic Cannon . | . . . . . . . . . . . . . Launcher 14 | . . 4 1 . 4 . . . 1 . 2 2 Special Weapon 5 | . . . . . . . . . 3 1 . 1 Impact Weapon . | . . . . . . . . . . . . . Slashing Weapon 1 | . . . . . . . . . . . . 1 Piercing Weapon . | . . . . . . . . . . . . . Special Melee Weapon 9 | . . . . . 2 . 1 4 . . 2 . Unidentified Prototypes 3 | . . 3 . . . . . . . . . . Corrupted Parts 2 | . . . . . 1 . 1 . . . . . System Corruption 2 | . . . . . 1 . 1 . . . . . Parts Lost 59 | . 1 6 2 7 7 . . 9 12 1 2 12 Power 6 | . . 1 . 1 1 . . 1 1 . . 1 Propulsion 29 | . . 2 1 3 3 . . 5 8 1 2 4 Utility 12 | . 1 1 1 2 1 . . . 2 . . 4 Weapon 12 | . . 2 . 1 2 . . 3 1 . . 3 Highest Loss Streak 7 | . 1 2 1 1 4 . . 2 5 2 1 7 Average Slot Usage (%) 95 | . 97 99 99 99 94 100 93 91 89 87 94 76 Engine 8 | . 14 11 8 9 8 9 6 6 6 6 6 5 Treads 14 | . 5 20 14 26 22 27 26 14 5 . . . Leg 3 | . 16 . . . . . . 6 7 . 11 7 Wheel 7 | . 5 12 11 . . . . 4 10 20 15 7 Device 3 | . . . 8 5 8 . 13 . 1 12 3 . Storage 8 | . 14 11 9 9 9 9 6 6 6 6 6 5 Processor 13 | . . 13 18 18 18 18 13 13 13 13 13 13 Hackware 7 | . 1 . 4 . . 9 6 16 19 13 22 19 Protection 7 | . 10 8 5 12 9 9 6 8 4 . . 1 Energy Gun 5 | . 14 4 2 1 8 12 8 4 4 2 1 . Energy Cannon 4 | . . 7 7 7 4 . . 2 6 6 5 3 Ballistic Gun 4 | . 14 9 7 8 . . . . . . . . Special Melee Weapon 1 | . . . . . 1 5 4 5 . . 3 3 Naked Turns . | . . . . . . . . . . . . . Heaviest Build 118 | 12 50 60 68 68 103 103 97 106 106 103 106 118 Greatest Support 84 | 20 20 26 26 64 66 64 64 84 45 52 52 32 Greatest Overweight (x) 39 | . 3 3 6 6 1 1 1 9 10 3 3 39 Average Overweight (x) 2 | . . 2 2 1 . 1 1 5 2 1 2 3 Largest Inventory Capacity 25 | . 20 20 20 25 25 25 25 25 25 25 25 25 Average Capacity 21 | . 13 20 20 20 20 25 25 25 25 25 25 24 Most Carried 25 | . 17 20 20 20 25 25 25 25 25 25 25 25 Average Carried 20 | . 11 19 19 17 17 24 24 24 24 24 24 23 Final Capacity 25 | 8 20 20 20 20 25 25 25 25 25 25 25 5 Final Carried 25 | 6 17 20 19 18 25 25 25 25 24 25 25 3 Class Distribution -------------------- 38% | Bothacker-Mutant 33% | Mutant 10% | Scavenger-Mutant 9% | Scavenger-Skirmisher 4% | Bothacker-Skirmisher Dominant Class ---------------- Mutant | -10/Materials Mutant | -9/Materials Scavenger-Skirmisher | -8/Materials Mutant | -8/Storage Mutant | -8/Garrison Bothacker-Mutant | -8/Recycling Bothacker-Assassin | -6/Factory Bothacker-Mutant | -6/Garrison Bothacker-Mutant | -6/Factory Bothacker-Mutant | -6/Lower Caves Bothacker-Mutant | -6/Lower Caves Bothacker-Mutant | -6/Zion Resources | -11 -10 -9 -8 -8 -8 -8 -6 -6 -6 -6 -6 -6 ----------- Run | Scr Mat Mat Mat Sto Gar Rec Fac Gar Fac Low Low Zio Matter Collected 3271 | 200 354 551 538 308 421 42 . 310 262 50 192 43 Remotely . | . . . . . . . . . . . . . Salvage Created 6928 | . 760 1155 1129 716 994 209 . 786 571 288 299 21 Parts 373 | . 53 93 74 49 46 7 . 14 18 6 12 1 Haulers Intercepted 8 | . 2 4 2 . . . . . . . . . Recyclers Shooed 4 | . 2 1 1 . . . . . . . . . Parts Field Recycled . | . . . . . . . . . . . . . Retrieved Matter . | . . . . . . . . . . . . . Parts Self-Destructed 14 | . . . . . . . . . . 5 9 . Prevented . | . . . . . . . . . . . . . Kills | -11 -10 -9 -8 -8 -8 -8 -6 -6 -6 -6 -6 -6 ------- Run | Scr Mat Mat Mat Sto Gar Rec Fac Gar Fac Low Low Zio Combat Hostiles Destroyed 135 | . 15 28 20 17 24 1 . 11 8 3 6 2 Guns 68 | . 15 9 11 14 6 1 . 7 4 1 . . Cannons 26 | . . 11 3 3 2 . . 2 1 2 2 . AOE 33 | . . 8 5 . 13 . . . 1 . 4 2 Classes Destroyed 17 | . 7 3 2 . 1 . . . 1 1 1 1 Worker 7 | . 1 2 1 . . . . . 3 . . . Builder 2 | . . 1 . . . . . . 1 . . . Tunneler 2 | . . 1 1 . . . . . . . . . Hauler 8 | . 2 4 2 . . . . . . . . . Recycler 7 | . 1 . 3 . . 2 . . 1 . . . Operator 2 | . 1 1 . . . . . . . . . . Watcher 15 | . 3 5 5 1 . . . . 1 . . . Swarmer 42 | . 3 14 11 3 9 . . 2 . . . . Grunt 50 | . 12 5 2 8 7 1 . 4 5 2 4 . Brawler 7 | . . . 1 1 2 . . 1 1 . 1 . Duelist 3 | . . . . . 2 . . . 1 . . . Sentry 26 | . . 9 5 5 3 . . 4 . . . . Hunter 4 | . . . 1 . 3 . . . . . . . Programmer 1 | . . . . . . . . . 1 . . . Behemoth 1 | . . . . . . . . . . . 1 . Zionite 1 | . . . . . . . . . . . . 1 Decomposer 1 | . . . . . . . . . . 1 . . Packrat 1 | . . . . . . . . . . 1 . . Thief 1 | . . . . . . . . . . 1 . . Marauder 2 | . . . . . . . . . . . . 2 Best Kill Streak 12 | . 3 6 7 5 12 3 . 2 4 2 4 2 Combat Bots Only 12 | . 3 6 5 5 12 1 . 2 3 2 4 2 Max Kills in Single Turn 4 | . 2 4 2 2 2 1 . 1 1 1 3 1 Gunslinging 1 | . . . . 1 . . . . . . . . Exploded 3 | . . 3 2 . 2 . . . 1 . 3 1 Melee . | . . . . . . . . . . . . . Uniques/NPCs Destroyed . | . . . . . . . . . . . . . Combat | -11 -10 -9 -8 -8 -8 -8 -6 -6 -6 -6 -6 -6 -------- Run | Scr Mat Mat Mat Sto Gar Rec Fac Gar Fac Low Low Zio Damage Taken 9981 | . 416 1252 888 1363 1329 18 18 1426 1191 89 140 1851 Core 1594 | . 61 321 60 151 147 . . 248 158 . 40 408 Absorbed by Shields 3 | . . . . . . 3 . . . . . . Core Remaining (%) 57 | 100 75 19 . . . 34 . . . . . . Volleys Fired 591 | . 62 112 67 61 82 17 . 87 45 29 12 17 Largest 2 | . 2 2 2 2 2 2 . 2 2 2 2 2 Hottest 215 | . 85 116 116 85 126 126 . 126 145 215 115 69 Shots Fired 944 | . 121 187 127 96 131 24 . 98 72 36 24 28 Gun 609 | . 121 117 84 66 71 24 . 78 32 7 9 . Cannon 255 | . . 62 38 30 39 . . 20 28 29 9 . Launcher 69 | . . 8 5 . 21 . . . 3 . 6 26 Special 11 | . . . . . . . . . 9 . . 2 Kinetic 246 | . 59 83 45 51 8 . . . . . . . Thermal 571 | . 62 96 54 30 93 24 . 98 60 36 18 . Explosive 57 | . . 8 5 . 9 . . . 3 . 6 26 Electromagnetic 59 | . . . 23 15 21 . . . . . . . Robot Hit Streak 47 | . 15 15 10 13 47 9 . 41 10 13 14 5 Robot Miss Streak 18 | . 4 3 4 5 5 18 . 1 3 2 3 1 Penetration Max 1 | . . . 1 1 . . . . . . . . Secondary Targets 3 | . . 1 . 2 . . . . . . . . Max Gunslinging Chain 1 | . . 1 . 1 . . . . . . . . Shots Hit Robots 713 | . 83 109 86 73 107 44 . 107 58 23 18 5 Core Hits 407 | . 43 60 40 40 107 13 . 30 36 10 15 13 Critical Kills 2 | . . . 1 . . . . 1 . . . . Critical Parts Destroyed 2 | . 1 . . 1 . . . . . . . . Critical Strikes 18 | . 3 . 2 1 . . . 9 . 1 2 . Burn 14 | . 2 . 1 . . . . 8 . 1 2 . Meltdown 1 | . . . . . . . . 1 . . . . Destroy 3 | . 1 . 1 1 . . . . . . . . Melee Attacks 81 | . . . . . 13 30 . 37 . . 1 . Impact . | . . . . . . . . . . . . . Slashing . | . . . . . . . . . . . . . Piercing . | . . . . . . . . . . . . . Sneak Attacks 39 | . . . . . 10 29 . . . . . . Combat Hostiles . | . . . . . . . . . . . . . Follow-up Attacks . | . . . . . . . . . . . . . Damage Inflicted 16100 | . 951 2281 2098 1675 3272 145 . 1538 1576 575 712 1277 Guns 8031 | . 951 1038 1118 1258 1224 145 . 1177 865 113 142 . Cannons 3902 | . . 713 625 362 735 . . 361 443 462 201 . Explosions 4167 | . . 530 355 55 1313 . . . 268 . 369 1277 Melee . | . . . . . . . . . . . . . Ramming . | . . . . . . . . . . . . . Kinetic 2891 | . 354 747 632 996 162 . . . . . . . Thermal 8734 | . 597 1062 962 417 1787 145 . 1538 1308 575 343 . Explosive 3045 | . . 472 226 . 433 . . . 268 . 369 1277 Electromagnetic 1430 | . . . 278 262 890 . . . . . . . Impact . | . . . . . . . . . . . . . Slashing . | . . . . . . . . . . . . . Piercing . | . . . . . . . . . . . . . Highest Corruption 4 | . . . . . 4 4 1 1 2 2 2 2 Average Corruption 1 | . . . . . 1 4 1 1 1 2 2 2 Corruption Purged . | . . . . . . . . . . . . . Effects 61 | . . . . . 14 17 . 10 3 7 5 5 Message Errors 28 | . . . . . 4 9 . 3 2 4 4 2 Matter Fused 3 | . . . . . 1 2 . . . . . . Heat Flow Errors 8 | . . . . . 2 3 . . . 1 . 2 Energy Discharges 11 | . . . . . 5 1 . 2 1 . 1 1 Data Loss (minor) 11 | . . . . . 2 2 . 5 . 2 . . Overload Shots 1 | . . . . . . . . . . 1 . . Overflow Damage 293 | . . 79 23 77 39 . . . 32 38 . 5 Projectiles 81 | . . 5 14 17 . . . . 7 38 . . Explosions 212 | . . 74 9 60 39 . . . 25 . . 5 Melee . | . . . . . . . . . . . . . Knockbacks . | . . . . . . . . . . . . . Impact . | . . . . . . . . . . . . . Kinetic . | . . . . . . . . . . . . . Secondary . | . . . . . . . . . . . . . Self-Inflicted Damage 653 | . . 139 83 56 132 . . . 66 . 45 132 Shots 24 | . . 3 3 1 8 . . . 3 . 2 4 Rammed . | . . . . . . . . . . . . . Targets Rammed . | . . . . . . . . . . . . . Kicked . | . . . . . . . . . . . . . Crushed . | . . . . . . . . . . . . . Highest Temperature 364 | . 304 202 306 312 179 177 . 261 364 153 120 261 Average Temperature 73 | . 69 49 60 126 57 48 . 46 144 58 46 69 Received Heat Transfer 2502 | . 216 354 234 594 270 . . 318 444 9 63 . Effects 4 | . 1 . . 2 . . . . . . . 1 Energy Bleed 1 | . . . . . . . . . . . . 1 Interference 2 | . 1 . . 1 . . . . . . . . Matter Decay 1 | . . . . 1 . . . . . . . . Siege Activations . | . . . . . . . . . . . . . Robots Corrupted 3 | . . . . . 3 . . . . . . . Combat Hostiles 3 | . . . . . 3 . . . . . . . Parts Fried 5 | . . . 1 . 4 . . . . . . . Impact Corruptions . | . . . . . . . . . . . . . Robots Melted 7 | . . . 1 . . . . 4 2 . . . Combat Hostiles 5 | . . . 1 . . . . 2 2 . . . Parts Melted 32 | . 1 1 5 . 2 . . 12 9 2 . . Heat Transferred 15906 | . 1548 1937 1617 642 2115 243 . 3644 2492 965 703 . Parts Sabotaged . | . . . . . . . . . . . . . Parts Stolen . | . . . . . . . . . . . . . Parts Stripped . | . . . . . . . . . . . . . Power Chain Reactions 6 | . . . 2 1 3 . . . . . . . Missiles Intercepted . | . . . . . . . . . . . . . Alert | -11 -10 -9 -8 -8 -8 -8 -6 -6 -6 -6 -6 -6 ------- Run | Scr Mat Mat Mat Sto Gar Rec Fac Gar Fac Low Low Zio Peak Influence 1088 | . 182 534 453 328 1087 655 1036 1088 673 . . . Initial 1036 | . . 45 70 180 119 489 1036 725 571 . . . Average 430 | . 73 256 168 172 672 490 1036 936 578 . . . Maximum Alert Level 3 | . . 2 2 1 3 2 3 3 2 . . . Low Security (%) 34 | . 100 37 52 72 7 . . . . . . . Level 1 20 | . . 54 44 27 1 7 . . . . . . Level 2 23 | . . 7 3 . 64 92 . . 100 . . . Level 3 21 | . . . . . 26 . 100 100 . . . . Level 4 . | . . . . . . . . . . . . . Level 5 . | . . . . . . . . . . . . . High Security . | . . . . . . . . . . . . . Max Security . | . . . . . . . . . . . . . Squads Dispatched 14 | . 3 3 4 2 . 1 . . 1 . . . Investigation 4 | . 2 1 1 . . . . . . . . . Extermination 1 | . . . . . . . . . 1 . . . Reinforcement 8 | . 1 2 3 1 . 1 . . . . . . Assault . | . . . . . . . . . . . . . Garrison 1 | . . . . 1 . . . . . . . . Intercept . | . . . . . . . . . . . . . Construction Impeded 1 | . . . . . . 1 . . . . . . Haulers Reinforced . | . . . . . . . . . . . . . Cargo Convoy Interrupts . | . . . . . . . . . . . . . Stealth | -11 -10 -9 -8 -8 -8 -8 -6 -6 -6 -6 -6 -6 --------- Run | Scr Mat Mat Mat Sto Gar Rec Fac Gar Fac Low Low Zio Distress Signals 12 | . . 3 3 2 . 4 . . . . . . Communications Jammed 30 | . . . 18 12 . . . . . . . . Distress Signals 30 | . . . 18 12 . . . . . . . . Times Spotted 237 | . 26 44 32 21 32 22 . 34 12 2 6 6 Peak Tracking Total 8 | . 3 8 6 6 6 4 . 6 3 1 4 4 Tactical Retreats 15 | . . 5 3 1 2 2 . . . . . 2 Traps | -11 -10 -9 -8 -8 -8 -8 -6 -6 -6 -6 -6 -6 ------- Run | Scr Mat Mat Mat Sto Gar Rec Fac Gar Fac Low Low Zio Traps Triggered 15 | . 3 1 1 . 2 . 1 6 1 . . . Indirectly . | . . . . . . . . . . . . . Trap Hack Attempts . | . . . . . . . . . . . . . Triggered . | . . . . . . . . . . . . . Disarmed . | . . . . . . . . . . . . . Reprogrammed 6 | . . 6 . . . . . . . . . . Reused . | . . . . . . . . . . . . . Traps Extracted . | . . . . . . . . . . . . . Installed . | . . . . . . . . . . . . . Triggered 1 | . . . . . . . . . . . 1 . Machines | -11 -10 -9 -8 -8 -8 -8 -6 -6 -6 -6 -6 -6 ---------- Run | Scr Mat Mat Mat Sto Gar Rec Fac Gar Fac Low Low Zio Machines Disabled 14 | . . 2 . 1 5 3 . 3 . . . . Max in Single Turn 2 | . . 1 . 1 2 1 . 1 . . . . Garrison Relay 6 | . . . . . 3 . . 3 . . . . Phase Generator 1 | . . . . . 1 . . . . . . . Machines Sabotaged . | . . . . . . . . . . . . . Garrisons Compromised . | . . . . . . . . . . . . . Overloaded Fab Kills . | . . . . . . . . . . . . . Fab Network Shutdowns . | . . . . . . . . . . . . . Hacking | -11 -10 -9 -8 -8 -8 -8 -6 -6 -6 -6 -6 -6 --------- Run | Scr Mat Mat Mat Sto Gar Rec Fac Gar Fac Low Low Zio Machines Accessed 41 | . 6 11 9 6 . 2 1 . 3 2 1 . Terminals 24 | . 4 8 5 4 . 1 . . 2 . . . Fabricators 1 | . . . . . . . . . 1 . . . Repair Stations 5 | . 1 2 1 1 . . . . . . . . Recycling Units 3 | . 1 . 1 . . 1 . . . . . . Scanalyzers 3 | . . 1 2 . . . . . . . . . Garrison Access 2 | . . . . 1 . . 1 . . . . . Total Hacks 153 | . 20 50 38 20 . 5 2 . 7 10 1 . Successful 107 | . 10 36 31 13 . 3 2 . 1 10 1 . Failed 46 | . 10 14 7 7 . 2 . . 6 . . . Catastrophic 3 | . . 2 1 . . . . . . . . . Database Lockouts . | . . . . . . . . . . . . . Manual 53 | . 12 21 9 5 . 2 . . 4 . . . Terminals 82 | . 13 33 18 12 . 2 . . 4 . . . Fabricators 3 | . . . . . . . . . 3 . . . Repair Stations 27 | . 4 6 10 7 . . . . . . . . Recycling Units 10 | . 3 . 4 . . 3 . . . . . . Scanalyzers 17 | . . 11 6 . . . . . . . . . Garrison Access 3 | . . . . 1 . . 2 . . . . . Terminal Hacks 41 | . 4 15 8 3 . . . . . 10 1 . Record 9 | . . . . . . . . . . 9 . . Part Schematic 2 | . 1 1 . . . . . . . . . . Robot Analysis 1 | . . 1 . . . . . . . . . . Prototype ID Bank 4 | . . 3 1 . . . . . . . . . Open Door 3 | . . . . 1 . . . . . 1 1 . Level Access Points 1 | . 1 . . . . . . . . . . . Branch Access Points 2 | . 1 1 . . . . . . . . . . Emergency Access Points 1 | . . . 1 . . . . . . . . . Alert Level 5 | . 1 1 2 1 . . . . . . . . Unreport Threat 3 | . . 2 . 1 . . . . . . . . Locate Traps 2 | . . 1 1 . . . . . . . . . Reprogram Traps 1 | . . 1 . . . . . . . . . . Security Status 1 | . . 1 . . . . . . . . . . Recall Investigation 1 | . . . 1 . . . . . . . . . Recall Reinforcements 1 | . . 1 . . . . . . . . . . Hauler Manifests 2 | . . 2 . . . . . . . . . . Zone Layout 2 | . . . 2 . . . . . . . . . Fabricator Hacks 1 | . . . . . . . . . 1 . . . Load Schematic 1 | . . . . . . . . . 1 . . . Repair Station Hacks 20 | . 1 3 10 6 . . . . . . . . Scan Component 11 | . 1 2 5 3 . . . . . . . . Repair 9 | . . 1 5 3 . . . . . . . . Recycling Unit Hacks 7 | . 2 . 3 . . 2 . . . . . . Process 3 | . 1 . 1 . . 1 . . . . . . Report Inventory 2 | . 1 . 1 . . . . . . . . . Retrieve Matter 2 | . . . 1 . . 1 . . . . . . Scanalyzer 17 | . . 11 6 . . . . . . . . . Insert Component 8 | . . 5 3 . . . . . . . . . Analyze 9 | . . 6 3 . . . . . . . . . Garrison Access Hacks 3 | . . . . 1 . . 2 . . . . . Unlock Access 2 | . . . . 1 . . 1 . . . . . Coupler Status 1 | . . . . . . . 1 . . . . . Unauthorized Hacks 18 | . 3 7 4 3 . 1 . . . . . . Terminals 18 | . 3 7 4 3 . 1 . . . . . . Botnet 18 | . 3 7 4 3 . 1 . . . . . . Fabricators . | . . . . . . . . . . . . . Repair Stations . | . . . . . . . . . . . . . Recycling Units . | . . . . . . . . . . . . . Scanalyzers . | . . . . . . . . . . . . . Garrison Access . | . . . . . . . . . . . . . Data Cores Recovered . | . . . . . . . . . . . . . Used . | . . . . . . . . . . . . . Hacking Detections 34 | . 6 11 8 4 . 1 1 . 3 . . . Full Trace Events 2 | . . 2 . . . . . . . . . . Feedback Events . | . . . . . . . . . . . . . Feedback Blocked . | . . . . . . . . . . . . . Robot Schematics Acquired . | . . . . . . . . . . . . . Robots Built . | . . . . . . . . . . . . . Matter . | . . . . . . . . . . . . . Time . | . . . . . . . . . . . . . Total Robot Build Rating . | . . . . . . . . . . . . . Part Schematics Acquired 9 | . 1 6 2 . . . . . . . . . Parts Built . | . . . . . . . . . . . . . Matter . | . . . . . . . . . . . . . Time . | . . . . . . . . . . . . . Total Part Build Rating . | . . . . . . . . . . . . . Parts Repaired 9 | . . 1 5 3 . . . . . . . . Time 295 | . . 26 154 115 . . . . . . . . Parts Recycled . | . . . . . . . . . . . . . Recycled Matter 296 | . 1 . 290 . . 5 . . . . . . Retrieved Matter 336 | . . . 331 . . 5 . . . . . . Retrieved Components . | . . . . . . . . . . . . . Parts Scanalyzed 7 | . . 5 2 . . . . . . . . . Part Schematics Acquired 7 | . . 5 2 . . . . . . . . . Parts Damaged 1 | . . . 1 . . . . . . . . . Bothacking | -11 -10 -9 -8 -8 -8 -8 -6 -6 -6 -6 -6 -6 ------------ Run | Scr Mat Mat Mat Sto Gar Rec Fac Gar Fac Low Low Zio Used RIF Installer 2 | . . . . . 1 . . 1 . . . . Watcher Feeds 1 | . . . . . . . . 1 . . . . Robots Hacked 22 | . . . . . 1 1 . 16 2 . 1 1 Non-combat 4 | . . . . . 1 1 . . 2 . . . Combat 18 | . . . . . . . . 16 . . 1 1 Robot Hacks Applied 30 | . . . . . 1 1 . 24 2 . 1 1 parse_system 2 | . . . . . . 1 . . . . . 1 drop_inventory 1 | . . . . . . . . . 1 . . . map_route 1 | . . . . . . . . . 1 . . . overload_power 1 | . . . . . 1 . . . . . . . disable_weapons 2 | . . . . . . . . 1 . . 1 . reboot_system 9 | . . . . . . . . 9 . . . . overwrite_iff 12 | . . . . . . . . 12 . . . . formatsys_high 2 | . . . . . . . . 2 . . . . Relay Couplers Released 24 | . . . . . 10 . . 14 . . . . Machine Destruction 24 | . . . . . 10 . . 14 . . . . Attached 16 | . . . . . 1 . . 11 1 . 2 1 Robots Rewired 13 | . . . . . 3 10 . . . . . . Allies Hacked . | . . . . . . . . . . . . . Hacks Repelled . | . . . . . . . . . . . . . Allies | -11 -10 -9 -8 -8 -8 -8 -6 -6 -6 -6 -6 -6 -------- Run | Scr Mat Mat Mat Sto Gar Rec Fac Gar Fac Low Low Zio Total Allies 28 | . . . . . 3 10 . 12 . 3 . . Largest Group 8 | . . . . . 3 8 1 3 . 3 . . Highest-Rated Group 120 | . . . . . 63 120 10 42 . 93 . . Highest-Rated Ally 34 | . . . . . 21 34 10 32 . 31 . . Total Orders 2 | . . . . . . 1 . 1 . . . . GUARD 1 | . . . . . . . . 1 . . . . TUNNEL 1 | . . . . . . 1 . . . . . . Ally Attacks 100 | . . . . . 14 20 . 46 . 20 . . Total Damage 2028 | . . . . . 413 577 . 807 . 231 . . Kills 19 | . . . . . 4 8 . 6 . 1 . . Allies Corrupted . | . . . . . . . . . . . . . Allies Melted . | . . . . . . . . . . . . . Intel | -11 -10 -9 -8 -8 -8 -8 -6 -6 -6 -6 -6 -6 ------- Run | Scr Mat Mat Mat Sto Gar Rec Fac Gar Fac Low Low Zio Robot Analysis Total 1 | . . 1 . . . . . . . . . . Derelict Logs Recovered 2 | . . . . . . . . . . 1 1 . Drone Launches . | . . . . . . . . . . . . . Drone Recoveries . | . . . . . . . . . . . . . Exploration | -11 -10 -9 -8 -8 -8 -8 -6 -6 -6 -6 -6 -6 ------------- Run | Scr Mat Mat Mat Sto Gar Rec Fac Gar Fac Low Low Zio Turns Passed 13490 | . 1426 2365 1652 915 1641 822 237 1784 640 858 840 310 Spaces Moved 6260 | 1 818 1268 741 241 633 268 89 577 237 674 570 143 Core 11 | . . . . . . . . . . . . 11 Treads 1448 | . 2 . . 216 633 268 89 240 . . . . Legs 506 | 1 454 . . . . . . . 51 . . . Wheels 4295 | . 362 1268 741 25 . . . 337 186 674 570 132 Hover . | . . . . . . . . . . . . . Flight . | . . . . . . . . . . . . . Fastest Speed 50 | 120 115 105 120 153 145 250 253 195 116 105 105 50 Average Speed 164 | 120 139 142 138 215 208 251 253 234 183 114 134 180 Slowest Speed 2000 | 120 260 145 170 258 257 253 253 365 680 135 145 2000 Overloaded Moves . | . . . . . . . . . . . . . Propulsion Burnouts . | . . . . . . . . . . . . . Robots Hopped . | . . . . . . . . . . . . . Cave-ins Triggered . | . . . . . . . . . . . . . Exploration Rate (%) 52 | 2 92 88 64 53 74 62 4 69 7 85 63 14 Regions Visited 12 Branch Regions 5 Pre-discovered Areas 1 | . . . . . . . . . . . . 1 Known Exits Taken 9 | . 1 1 1 1 . 1 1 . 1 1 1 . Unknown Exits Taken 1 | 1 . . . . . . . . . . . . Scrap Searched 6 | . . . . . . . . . . 2 4 . Spaces Dug 4 | . . 4 . . . . . . . . . . Terrain Destroyed 438 | . . 94 42 5 68 . . . 24 4 85 116 Melee . | . . . . . . . . . . . . . Projectile 30 | . . 8 8 5 . . . . 4 4 1 . AOE 408 | . . 86 34 . 68 . . . 20 . 84 116 Terrain Rammed . | . . . . . . . . . . . . . Walls Destroyed . | . . . . . . . . . . . . . Machines Disabled . | . . . . . . . . . . . . . Actions | -11 -10 -9 -8 -8 -8 -8 -6 -6 -6 -6 -6 -6 --------- Run | Scr Mat Mat Mat Sto Gar Rec Fac Gar Fac Low Low Zio Total 8434 | . 1005 1647 1239 538 807 362 99 870 362 721 616 168 Wait 1044 | . 65 186 370 207 40 42 2 75 37 6 14 . Move 6250 | . 817 1267 740 241 632 267 89 576 236 673 569 143 Hop . | . . . . . . . . . . . . . Pick Up 130 | . 24 29 14 11 15 1 3 17 9 4 3 . Fast Attach 20 | . 2 1 5 . . . . 5 2 2 2 1 Attach 52 | . 1 10 4 6 8 . 3 8 8 1 . 3 Detach . | . . . . . . . . . . . . . Swap 124 | . 12 20 23 8 13 3 2 15 13 2 11 2 Drop 88 | . 22 22 16 4 . 2 . 8 4 4 4 2 Fire 591 | . 62 112 67 61 82 17 . 87 45 29 12 17 Melee 81 | . . . . . 13 30 . 37 . . 1 . Ram . | . . . . . . . . . . . . . Kick . | . . . . . . . . . . . . . Crush . | . . . . . . . . . . . . . Escape Stasis 54 | . . . . . 4 . . 42 8 . . . Rewire . | . . . . . . . . . . . . . Trap . | . . . . . . . . . . . . . Miscellaneous . | . . . . . . . . . . . . . Route ------- -11/Scrapyard -10/Materials (discovered 4 exits: *Mat x3 / *Min) -9/Materials (discovered 4 exits: *Mat x2 / *Min x2) -8/Materials (discovered 3 exits: *Fac x2 / *Sto) -8/Storage -8/Garrison (discovered 3 exits: *Rec x3) -8/Recycling -6/Factory -6/Garrison (discovered 3 exits: *Fac x3) -6/Factory -6/Lower Caves -6/Lower Caves -6/Zion (discovered 1 exit: [*Pro]) History --------- Turn | Location | Event 1 | -11/Scrapyard | Discovered new exit (range 0) 1 | -11/Scrapyard | Entered Materials 198 | -10/Materials | Discovered new exit (range 15) 308 | -10/Materials | Build established: Mutant 562 | -10/Materials | Discovered new exit (range 16) 748 | -10/Materials | Discovered new exit (range 8) 1073 | -10/Materials | Identified exit to Mines 1073 | -10/Materials | Identified exit to Materials 1427 | -10/Materials | Entered another Materials area 1427 | -9/Materials | Evolved 2 slots: Propulsion x1, Utility x1 1968 | -9/Materials | Repaired Grenade Launcher 1993 | -9/Materials | Build established: Scavenger-Mutant 2209 | -9/Materials | Discovered new exit (range 4) 2380 | -9/Materials | Build established: Mutant 2472 | -9/Materials | Core integrity fell below 50% 2553 | -9/Materials | Discovered new exit (range 9) 3012 | -9/Materials | Discovered new exit (range 7) 3315 | -9/Materials | Identified exit to Materials 3373 | -9/Materials | Build established: Scavenger-Mutant 3457 | -9/Materials | Identified exit to Mines 3486 | -9/Materials | Core integrity fell below 20% 3792 | -9/Materials | Entered another Materials area 3792 | -8/Materials | Evolved 2 slots: Utility x2 4395 | -8/Materials | Repaired Deuterium Engine 4424 | -8/Materials | Repaired Lgt. Treads 4445 | -8/Materials | Build established: Scavenger-Skirmisher 4451 | -8/Materials | Repaired Lgt. Treads 4479 | -8/Materials | Repaired Com. Wheel 4518 | -8/Materials | Repaired Ion Cannon 4860 | -8/Materials | Discovered new exit (range 8) 4877 | -8/Materials | Identified exit to Factory 5233 | -8/Materials | Discovered exit to Factory (range 5) 5393 | -8/Materials | Discovered new exit (range 11) 5442 | -8/Materials | Identified exit to Storage 5444 | -8/Materials | Entered Storage 5850 | -8/Storage | Repaired Sensor Array 5889 | -8/Storage | Repaired Transmission Jammer 5941 | -8/Storage | Repaired Imp. EM Shotgun 5986 | -8/Storage | Build established: Mutant 6297 | -8/Storage | Garrison activated, responded to threat 6359 | -8/Storage | Identified exit to Garrison 6359 | -8/Storage | Entered Garrison 6402 | -8/Garrison | Triggered checkpoint 6436 | -8/Garrison | Garrison Relay disabled 6478 | -8/Garrison | Triggered checkpoint 6489 | -8/Garrison | Triggered checkpoint 6494 | -8/Garrison | Triggered checkpoint 6496 | -8/Garrison | Triggered checkpoint 6530 | -8/Garrison | Lost 4 parts (2n2w) 6542 | -8/Garrison | Core integrity fell below 50% 6566 | -8/Garrison | Destroyed 12 combat bots 6625 | -8/Garrison | Discovered new exit (range 9) 6642 | -8/Garrison | Identified exit to Recycling 6872 | -8/Garrison | Discovered exit to Recycling (range 10) 6924 | -8/Garrison | Installed Relay Interface Framework 7018 | -8/Garrison | Triggered checkpoint 7083 | -8/Garrison | Garrison Relay disabled 7533 | -8/Garrison | Discovered exit to Recycling (range 12) 7606 | -8/Garrison | Build established: Bothacker-Mutant 7647 | -8/Garrison | Phase Generator disabled 7694 | -8/Garrison | Triggered checkpoint 7764 | -8/Garrison | Garrison Relay disabled 8000 | -8/Garrison | Entered Recycling 8034 | -8/Recycling | Spotter reported a threat 8093 | -8/Recycling | Spotter reported a threat 8093 | -8/Recycling | Spotter reported a threat 8111 | -8/Recycling | Spotter reported a threat 8119 | -8/Recycling | Spotter reported a threat 8123 | -8/Recycling | Spotter reported a threat 8146 | -8/Recycling | Spotter reported a threat 8236 | -8/Recycling | Spotter reported a threat 8249 | -8/Recycling | Spotter reported a threat 8276 | -8/Recycling | Spotter reported a threat 8276 | -8/Recycling | Spotter reported a threat 8289 | -8/Recycling | Spotter reported a threat 8297 | -8/Recycling | Spotter reported a threat 8320 | -8/Recycling | Spotter reported a threat 8342 | -8/Recycling | Spotter reported a threat 8368 | -8/Recycling | Spotter reported a threat 8368 | -8/Recycling | Spotter reported a threat 8373 | -8/Recycling | Spotter reported a threat 8395 | -8/Recycling | Spotter reported a threat 8426 | -8/Recycling | Spotter reported a threat 8450 | -8/Recycling | Spotter reported a threat 8501 | -8/Recycling | Spotter reported a threat 8525 | -8/Recycling | Spotter reported a threat 8548 | -8/Recycling | Spotter reported a threat 8578 | -8/Recycling | Spotter reported a threat 8600 | -8/Recycling | Spotter reported a threat 8651 | -8/Recycling | Spotter reported a threat 8653 | -8/Recycling | Spotter reported a threat 8714 | -8/Recycling | Spotter reported a threat 8767 | -8/Recycling | Spotter reported a threat 8767 | -8/Recycling | Spotter reported a threat 8782 | -8/Recycling | Spotter reported a threat 8805 | -8/Recycling | Discovered new exit (range 5) 8818 | -8/Recycling | Identified exit to Factory 8822 | -8/Recycling | Entered Factory 8822 | -6/Factory | Accompanied by 1 ally 8822 | -6/Factory | Evolved 4 slots: Propulsion x2, Utility x2 9059 | -6/Factory | Identified exit to Garrison 9059 | -6/Factory | Entered Garrison 9059 | -6/Garrison | Accompanied by 1 ally 9230 | -6/Garrison | Triggered checkpoint 9308 | -6/Garrison | Garrison Relay disabled 9454 | -6/Garrison | Triggered checkpoint 9568 | -6/Garrison | Discovered new exit (range 11) 9589 | -6/Garrison | Identified exit to Factory 9704 | -6/Garrison | Triggered checkpoint 9742 | -6/Garrison | Garrison Relay disabled 9910 | -6/Garrison | Triggered checkpoint 10429 | -6/Garrison | Discovered exit to Factory (range 13) 10514 | -6/Garrison | Triggered checkpoint 10539 | -6/Garrison | Garrison Relay disabled 10690 | -6/Garrison | Triggered checkpoint 10771 | -6/Garrison | Discovered exit to Factory (range 19) 10830 | -6/Garrison | Expanded RIF knowledge: Watcher Feeds 10843 | -6/Garrison | Entered Factory 11103 | -6/Factory | Lost 5 parts (1p3n1u) 11366 | -6/Factory | Discovered new exit (range 9) 11418 | -6/Factory | Identified exit to Lower Caves 11483 | -6/Factory | Entered Lower Caves 11543 | -6/Lower Caves | Encountered a Warlord checkpoint 11559 | -6/Lower Caves | A Commander dispatched an escort 11560 | -6/Lower Caves | Learned Factory non-interactive machine intel 11568 | -6/Lower Caves | Learned Research stockpile data 11568 | -6/Lower Caves | Learned Extension stockpile data 11568 | -6/Lower Caves | Learned Research security intel 11568 | -6/Lower Caves | Learned Factory terminal intel 11568 | -6/Lower Caves | Learned Armory terminal intel 11568 | -6/Lower Caves | Learned Research garrison access intel 11804 | -6/Lower Caves | Build established: Bothacker-Skirmisher 12186 | -6/Lower Caves | Build established: Bothacker-Mutant 12220 | -6/Lower Caves | Discovered new exit (range 14) 12269 | -6/Lower Caves | Identified exit to Lower Caves 12341 | -6/Lower Caves | Entered another Lower Caves area 12620 | -6/Lower Caves | Core integrity fell below 50% 12789 | -6/Lower Caves | Encountered a Warlord checkpoint 12819 | -6/Lower Caves | Spotted B-75 Beast 12847 | -6/Lower Caves | Destroyed B-75 Beast 13033 | -6/Lower Caves | Learned location of 1 exit from Factory 13166 | -6/Lower Caves | Discovered new exit (range 3) 13169 | -6/Lower Caves | Identified exit to Zion 13181 | -6/Lower Caves | Entered Zion 13225 | -6/Zion | Given the Hacking Drone Bay 13251 | -6/Zion | Discovered new exit (range 18) 13316 | -6/Zion | Learned location of Warlord (-4) 13365 | -6/Zion | RIF detected upon attempting to enter Zion 13365 | -6/Zion | Attacked by Zionites 13365 | -6/Zion | Spotted WX-N2L(B) 13365 | -6/Zion | Spotted J5-212(B) 13404 | -6/Zion | Destroyed WX-N2L(B) 13416 | -6/Zion | Destroyed J5-212(B) 13434 | -6/Zion | Lost 7 parts (4n2u1w) 13469 | -6/Zion | 12-ASH came to Zion's defense 13485 | -6/Zion | Core integrity fell below 20% 13491 | -6/Zion | Destroyed by 12-ASH with 12-ASH's Boomstick Last Messages --------------- The unstable cave ceiling collapses. IZAKY%A%8W,9KKI6HODUPLKFW|LEOJMICNI The unstable cave ceiling collapses. 12-ASH: "Who are you to come after my hometown?" The unstable cave ceiling collapses. Relay Coupler [Hunter] destroyed. Imp. Deuterium Engine destroyed. The unstable cave ceiling collapses. YS-Q53(z) destroyed. Hvy. Rocket Launcher destroyed. The unstable cave ceiling collapses. Lyr. Heavy Armor Plating destroyed. The unstable cave ceiling collapses. Dropped Huge Storage Unit. Mni. Grenade Launcher destroyed. Acquired Relay Coupler [Hunter]. System corrupted: Heat flow error (+236). Acquired 10 matter. Acquired 3 matter. The unstable cave ceiling collapses. Map ----- +----------------------------------------------------+ | ??????????????????????????????### ##????????????? | | ?????????????????????????????## #????????????? | | ?????????????????????????????# < ##??#####????? | | ?????????????????????????????# #??# ###??? | | ??????????????????????????????# #??#!! =!#??? | | ??????????????????????????????# #??# #??? | | ??????????????????????????????# ##???#! #???? | | ??????????????????????????????## ##????# ##??? | | ???????????????????????????????# ##????## #??? | | ???????????????????????????????# #???### #??? | | ???????????????????????????##### #??## ###? | | ??????????????????????????## #??# ## | | ??????????????????????????# #??#### | | ??????????????????????????## #???### ### | | ???????????????????????????# ##??## #??# | | ????????######????????????## ##??# ##??## | | ??????### #??????????## #### ##??? | | ??????# # #?????????# ## #??? | | ?????# # ##??????## #??? | | ????? ## # ## ######???### ### | | ????? ## #### # ##????# ###?## | | ????## # ""###### ##?????# ## | | ????"" # ##[! # ###????? ##? | | """""" !!!!/ #?????##### | | ! ! [g #??????## | | !@!! #### #????### | | ??""""# !!* #?## ####?# | | ??????## # ### #?# ### | | ??????# # """ ##???###?# | | ??????## # ## # ##????????# | | ???????# ?## ##????????## | | ???????### ####???######??????????# | | ??????????????????????????????##?## | | ??????????????????????????????# ## ### | | ??????????????????????????????# ##?## | | ??????????????????????????????#"" #???# | | ??????????????????????????????#" ! #???# | | ??????????????????????????????#"" #??# | | ??????????????????????????????#### #?# ## | | ?????????????????????????????????##### #?# #? | | ?????????????????????????????????????#######?# #? | | ????????????????????????????????????????????## ## | | ????????????????????????????????????????????# # | | ????????????????????????????????????????????# # | | ????????????????????????????????????????????## ## | | ???????????????????????????????????????????## # | | ???????????????????????????????????????????# ## | | ???????????????????????????????????????????## # | | ???????????????????????????????????????????# # | | ???????????????????????????????????????????# ## | +----------------------------------------------------+ Best States ------------- Heat Dissipation 56 Energy Generation 18 Energy Capacity 300 Matter Stores 300 Matter Capacity 300 Sight Range 20 Robot Scan Range 15 Terrain Scan Density 10 Jamming Range 8 Armor Coverage 600 Propulsion Shielding 66 Utility Shielding 66 Evasion (%) 55 Recoil Reduction 4 Offensive Hacking 10 Relay Coupler Types 89 Relay Coupler Value 4 Item Schematics ----------------- Datajack | -10/Materials | Hacked Utility Shielding | -9/Materials | Hacked Hacking Suite | -9/Materials | Scanalyzed Spread Laser | -9/Materials | Scanalyzed Signal Interpreter | -9/Materials | Scanalyzed Sensor Array | -9/Materials | Scanalyzed Imp. Utility Shielding | -9/Materials | Scanalyzed Lgt. Treads | -8/Materials | Scanalyzed Hrd. Medium Armor Plating | -8/Materials | Scanalyzed Robot Schematics ------------------ None Fabricated ------------ Nothing Alien Tech Used ----------------- None Achievements -------------- None Challenges ------------ None Game ------ Seed CoilPortableStorm Manual? 0 Play Time 01:39:38 Cumulative 204.6 hours Start 2021.06.16 @ 21:04:31 End 2021.06.17 @ 20:28:36 Sessions 3 Manual Loads 0 Difficulty Rogue Special Mode None Game No. 253 Rogue 253 Adventurer 0 Explorer 0 Win Type - Total 2 Types 2/0/0/0/0/0/0/0/0 Lore% 59 Gallery% 77 Achievement% 57 Wizard Run 0 Options --------- ASCII 0 Keyboard 0 Movement Mouse Keybinds 1 Fullscreen 2 Font 24/Smallcaps Map View 76x50 Tactical HUD 1 Map Filters NONE Filters NONE Steam 1 RUN: 75845af5-5dc4-43a4-90c9-ad88f797160b